bitfinex-derivatives/quotes_SOLF0:USTF0_20250415
["timestamp","ask_amount","ask_price","bid_price","bid_amount"]
[1744700614945,7.65844406,131.5,131.48,0.04815191]
[1744700615440,0.05304406,131.5,131.48,0.04815191]
[1744700615641,7.6057,131.49,131.48,0.04815191]
[1744700615845,12.31475172,131.49,131.48,0.04815191]
[1744700617343,4.70905172,131.49,131.42,27.64]
[1744700617546,4.70905172,131.47,131.42,32.34905172]
[1744700618244,0.05149871,131.46,131.43,0.05414601]
[1744700618447,0.05149871,131.46,131.45,4.70905172]
[1744700618846,0.05149871,131.46,131.45,12.31705172]
[1744700619345,0.05149871,131.46,131.45,4.70905172]
[1744700620250,0.05149871,131.46,131.45,12.31705172]
[1744700620851,0.05149871,131.46,131.44,12.31745172]
[1744700621853,0.05149871,131.46,131.39,4.70905172]
[1744700622051,4.70905172,131.44,131.39,4.70905172]
[1744700622245,7.6101,131.42,131.39,7.6113]
[1744700622948,0.05725214,131.42,131.41,4.70905172]
[1744700623150,0.05725214,131.42,131.4,27.68]
[1744700623652,0.05725214,131.42,131.41,7.6103]
[1744700625253,0.05725214,131.42,131.4,35.2909]
[1744700625650,0.05725214,131.42,131.41,7.6103]
[1744700625952,0.05725214,131.42,131.4,27.68]
[1744700626353,0.05725214,131.42,131.39,0.05296629]
[1744700627053,0.05725214,131.42,131.39,7.66406629]
[1744700627254,0.05725214,131.42,131.39,0.05296629]
[1744700628054,7.66705214,131.42,131.39,7.66416629]
[1744700628953,7.6104,131.41,131.39,7.66416629]
[1744700629250,0.05725214,131.42,131.39,0.05296629]
[1744700629555,7.6109,131.4,131.39,0.05296629]
[1744700630354,7.6106,131.41,131.39,0.05296629]
[1744700630554,0.05725214,131.42,131.39,0.05296629]
[1744700630753,7.43076233,131.42,131.39,0.05296629]
[1744700631147,7.6109,131.4,131.39,0.05296629]
[1744700631958,0.05725214,131.42,131.39,0.05296629]
[1744700632846,7.6109,131.4,131.39,0.05296629]
[1744700633657,7.6105,131.41,131.39,0.05296629]
[1744700634055,0.05725214,131.42,131.39,0.05296629]
[1744700634259,0.05725214,131.42,131.4,7.6107]
[1744700634655,0.05725214,131.42,131.39,0.05296629]
[1744700634850,7.66735214,131.42,131.39,7.66416629]
[1744700636258,7.6105,131.41,131.39,0.05296629]
[1744700636459,0.05725214,131.42,131.39,0.05296629]
[1744700637355,7.37351019,131.44,131.39,0.05296629]
[1744700637356,4.1452,131.48,131.4,27.68]
[1744700637556,2.0108,131.48,131.41,7.37351019]
[1744700637860,7.6072,131.47,131.44,7.6085]
[1744700638160,2.0108,131.48,131.44,7.6085]
[1744700638462,0.04878354,131.47,131.45,0.05467283]
[1744700638761,7.6075,131.46,131.45,0.05467283]
[1744700640270,0.04878354,131.47,131.45,0.05467283]
[1744700640473,37.15001019,131.53,131.45,7.42818302]
[1744700640873,29.7765,131.53,131.46,27.68]
[1744700641172,29.7765,131.53,131.46,31.6408]
[1744700641673,0.05212812,131.51,131.48,0.05037706]
[1744700642074,7.42563831,131.51,131.48,0.05037706]
[1744700642274,7.6057,131.49,131.48,0.05037706]
[1744700642574,14.97921019,131.49,131.48,0.05037706]
[1744700642873,7.6086,131.44,131.43,27.68]
[1744700643276,7.6082,131.45,131.43,27.68]
[1744700643576,7.37351019,131.49,131.43,27.68]
[1744700643774,27.68,131.5,131.4,37.2963]
[1744700643775,7.6098,131.42,131.4,37.2963]
[1744700643975,7.37351019,131.45,131.4,27.73208446]
[1744700644176,0.05776382,131.42,131.4,0.05208446]
[1744700644379,7.6103,131.41,131.4,0.05208446]
[1744700644577,0.05776382,131.42,131.4,27.73208446]
[1744700644876,0.05776382,131.42,131.41,7.6103]
[1744700645374,7.607,131.47,131.44,7.6081]
[1744700645678,39.28521019,131.51,131.43,35.05351019]
[1744700646078,7.6065,131.48,131.45,7.6077]
[1744700646278,7.65815382,131.48,131.45,7.65778986]
[1744700647482,0.05165382,131.48,131.46,7.6071]
[1744700648075,0.05165382,131.48,131.47,7.6069]
[1744700648280,27.68,131.54,131.47,7.37351019]
[1744700648779,7.6037,131.53,131.5,7.6048]
[1744700649481,7.65224021,131.53,131.5,7.66168283]
[1744700649884,7.604,131.52,131.5,7.66168283]
[1744700651082,7.6045,131.51,131.5,0.05688283]
[1744700653586,7.6042,131.52,131.5,0.05688283]
[1744700653989,0.04854021,131.53,131.5,0.05688283]
[1744700654185,7.604,131.52,131.5,0.05688283]
[1744700656486,7.65224021,131.53,131.5,7.66188283]
[1744700656686,0.04854021,131.53,131.5,0.05688283]
[1744700657087,0.04854021,131.53,131.51,7.6041]
[1744700659591,7.65204021,131.53,131.51,7.6041]
[1744700659985,0.04854021,131.53,131.5,0.05688283]
[1744700660190,7.4220504,131.53,131.5,0.05688283]
[1744700660389,7.37351019,131.51,131.41,35.3701]
[1744700660594,7.37351019,131.47,131.41,35.3701]
[1744700660792,7.37351019,131.47,131.41,27.76]
[1744700660994,7.37351019,131.47,131.42,7.6096]
[1744700661295,11.79749269,131.49,131.42,7.6096]
[1744700661491,0.05011339,131.46,131.45,7.608]
[1744700661792,0.05742537,131.47,131.44,27.81016321]
[1744700662093,2.1254,131.55,131.49,7.6054]
[1744700662293,2.1254,131.55,131.49,27.76]
[1744700662686,13.92289269,131.55,131.49,27.76]
[1744700663085,0.05360017,131.53,131.51,0.05295077]
[1744700663290,7.604,131.52,131.51,0.05295077]
[1744700663787,7.65720017,131.53,131.51,0.05295077]
[1744700664496,0.05360017,131.53,131.51,0.05295077]
[1744700665699,0.05360017,131.53,131.52,7.604]
[1744700665893,29.8801,131.59,131.52,27.76]
[1744700666099,39.55749269,131.62,131.52,27.76]
[1744700666695,39.55749269,131.62,131.53,7.6033]
[1744700666998,39.55749269,131.62,131.52,27.76]
[1744700667302,7.6012,131.57,131.56,0.05071948]
[1744700667599,0.0475113,131.59,131.56,0.05071948]
[1744700667898,7.601,131.58,131.56,0.05071948]
[1744700668799,7.6474113,131.59,131.56,0.05071948]
[1744700668994,0.0475113,131.59,131.56,0.05071948]
[1744700669395,7.6007,131.58,131.56,0.05071948]
[1744700669696,0.0475113,131.59,131.56,0.05071948]
[1744700669896,7.6009,131.58,131.56,0.05071948]
[1744700670099,0.0475113,131.59,131.56,0.05071948]
[1744700671102,7.6005,131.58,131.56,0.05071948]
[1744700671298,0.0475113,131.59,131.56,0.05071948]
[1744700672205,0.0475113,131.59,131.57,7.6006]
[1744700674701,2.1269,131.64,131.58,27.74]
[1744700674905,32.0377,131.65,131.58,27.74]
[1744700676006,32.0377,131.65,131.6,0.05287643]
[1744700677610,7.5983,131.62,131.6,0.05287643]
[1744700678207,7.5988,131.61,131.6,0.05287643]
[1744700678910,7.5985,131.62,131.6,0.05287643]
[1744700679713,7.5974,131.64,131.6,7.65177643]
[1744700680113,11.79749269,131.66,131.6,7.65177643]
[1744700680811,11.79749269,131.66,131.6,0.05287643]
[1744700682111,7.5985,131.62,131.6,0.05287643]
[1744700682312,11.79749269,131.66,131.6,0.05287643]
[1744700682514,28.08,131.65,131.6,0.05287643]
[1744700682713,7.5986,131.62,131.6,0.05287643]
[1744700683109,7.5979,131.63,131.6,0.05287643]
[1744700683611,7.5979,131.63,131.6,7.65187643]
[1744700687113,43.80919269,131.68,131.61,7.5987]
[1744700687308,43.80919269,131.68,131.63,0.05124736]
[1744700688616,7.5973,131.64,131.63,0.05124736]
[1744700690413,14.9503908,131.64,131.63,0.05124736]
[1744700691519,7.5973,131.64,131.63,0.05124736]
[1744700698324,7.599,131.61,131.58,27.74]
[1744700698628,7.3530908,131.64,131.58,27.74]
[1744700698817,7.3530908,131.64,131.58,35.3401]
[1744700699131,7.5985,131.62,131.58,27.74]
[1744700699524,0.0486605,131.61,131.59,7.64955799]
[1744700700327,0.0486605,131.61,131.6,7.5993]
[1744700704426,7.3530908,131.67,131.6,7.5993]
[1744700705133,7.3530908,131.67,131.58,27.74]
[1744700705325,7.598,131.63,131.58,27.74]
[1744700705530,7.598,131.63,131.61,0.05136354]
[1744700707432,7.598,131.63,131.61,7.65006354]
[1744700707631,7.3530908,131.67,131.61,0.05136354]
[1744700708227,7.5979,131.63,131.61,0.05136354]
[1744700708427,7.3530908,131.67,131.61,0.05136354]
[1744700708729,7.5973,131.64,131.61,7.65006354]
[1744700709133,7.3530908,131.67,131.61,7.65006354]
[1744700709733,7.5977,131.63,131.61,0.05136354]
[1744700710436,7.5982,131.62,131.61,0.05136354]
[1744700711030,35.677,131.65,131.62,7.5982]
[1744700711222,35.677,131.65,131.61,0.05136354]
[1744700711425,31.8117,131.68,131.61,27.93136354]
[1744700711622,7.5955,131.67,131.62,7.3530908]
[1744700711821,2.132,131.69,131.63,0.04961824]
[1744700712128,7.596,131.66,131.63,7.64691824]
[1744700712330,9.4850908,131.69,131.63,0.04961824]
[1744700713232,7.5967,131.65,131.63,0.04961824]
[1744700715030,7.597,131.64,131.63,0.04961824]
[1744700715235,7.3530908,131.61,131.57,27.86]
[1744700715630,37.2982908,131.63,131.57,27.86]
[1744700716436,7.5997,131.6,131.59,0.05536564]
[1744700716828,7.4052959,131.61,131.54,27.86]
[1744700717030,7.3530908,131.58,131.51,31.9353]
[1744700717334,7.3530908,131.58,131.53,7.6033]
[1744700717529,37.2160908,131.6,131.53,7.6033]
[1744700717833,7.6014,131.57,131.55,0.05374582]
[1744700718433,7.65681729,131.58,131.55,0.05374582]
[1744700718834,0.05611729,131.58,131.55,0.05374582]
[1744700719338,7.3530908,131.56,131.49,11.7022]
[1744700719634,7.3530908,131.56,131.49,4.0967]
[1744700719833,27.88,131.57,131.5,7.3530908]
[1744700720032,27.88,131.57,131.52,7.6036]
[1744700720336,27.88,131.57,131.51,27.88]
[1744700720536,0.05297462,131.56,131.53,0.05015981]
[1744700720738,0.05297462,131.56,131.54,27.88]
[1744700720939,0.05297462,131.56,131.55,7.6022]
[1744700722233,0.05297462,131.56,131.54,35.4826]
[1744700722740,0.05297462,131.56,131.54,27.88]
[1744700723040,0.05297462,131.56,131.55,7.6022]
[1744700723843,7.5994,131.6,131.57,7.6008]
[1744700724140,7.3530908,131.66,131.58,7.3530908]
[1744700724331,7.5969,131.65,131.61,7.5985]
[1744700724533,7.5969,131.65,131.6,35.2330908]
[1744700725032,0.05835458,131.64,131.62,7.5978]
[1744700725335,0.05835458,131.64,131.61,0.04824627]
[1744700725537,0.05835458,131.64,131.61,7.64674627]
[1744700726239,7.65595458,131.64,131.61,0.04824627]
[1744700726741,0.05835458,131.64,131.61,7.64654627]
[1744700726941,0.05835458,131.64,131.61,0.04824627]
[1744700727437,0.05835458,131.64,131.63,7.5976]
[1744700727641,0.05835458,131.64,131.63,35.4776]
[1744700727941,7.5944,131.69,131.63,27.88]
[1744700728144,7.5944,131.69,131.64,7.3530908]
[1744700728441,7.5922,131.73,131.69,7.5941]
[1744700728641,4.0681,131.76,131.7,27.88]
[1744700729144,7.64158736,131.74,131.72,0.0548454]
[1744700729438,0.04998736,131.74,131.72,0.0548454]
[1744700730039,335.86592241,131.84,131.73,27.88]
[1744700730232,7.3530908,131.82,131.75,7.5902]
[1744700730742,7.5882,131.8,131.75,7.5902]
[1744700731039,7.3530908,131.82,131.75,7.5902]
[1744700731246,7.5888,131.79,131.76,0.04814972]
[1744700731943,27.86,131.82,131.76,27.90814972]
[1744700732346,28.526,131.81,131.76,27.90814972]
[1744700733646,28.526,131.81,131.78,7.5885]
[1744700733946,28.526,131.81,131.76,27.90814972]
[1744700734143,28.526,131.81,131.77,7.5893]
[1744700734551,28.526,131.81,131.76,27.90814972]
[1744700735247,36.1136,131.81,131.77,7.5894]
[1744700735549,40.26361865,131.81,131.76,0.04814972]
[1744700735749,11.73761865,131.77,131.69,4.1605]
[1744700735947,11.73761865,131.77,131.69,32.0205]
[1744700736247,7.5917,131.74,131.69,39.6142]
[1744700736448,7.5917,131.74,131.69,32.0205]
[1744700736745,7.5919,131.73,131.69,32.0205]
[1744700736953,0.04814972,131.73,131.7,0.05725057]
[1744700737551,7.64034972,131.73,131.7,0.05725057]
[1744700738151,0.04814972,131.73,131.7,7.65055057]
[1744700738646,0.04814972,131.73,131.7,0.05725057]
[1744700739650,11.73761865,131.71,131.65,574.52]
[1744700740051,11.73761865,131.71,131.65,27.86]
[1744700740546,7.5945,131.69,131.65,35.4564]
[1744700740742,7.6427726,131.69,131.67,0.05325356]
[1744700740952,0.0482726,131.69,131.67,0.05325356]
[1744700741452,7.5947,131.68,131.67,0.05325356]
[1744700741852,11.73761865,131.67,131.62,28.22]
[1744700742349,11.73761865,131.67,131.59,546.62]
[1744700742350,28.22,131.66,131.59,28.22]
[1744700742552,7.5977,131.63,131.59,35.8199]
[1744700742952,0.05290066,131.62,131.6,0.05714447]
[1744700743353,7.65110066,131.62,131.6,0.05714447]
[1744700743652,0.05290066,131.62,131.6,0.05714447]
[1744700744053,7.5988,131.61,131.6,0.05714447]
[1744700746552,7.65130066,131.62,131.6,0.05714447]
[1744700747352,0.05290066,131.62,131.6,0.05714447]
[1744700748754,0.05290066,131.62,131.6,7.65614447]
[1744700748948,0.05290066,131.62,131.6,0.05714447]
[1744700750349,7.5988,131.61,131.6,0.05714447]
[1744700753353,7.6011,131.58,131.56,28.24]
[1744700754253,7.6001,131.59,131.56,28.24]
[1744700754455,0.05570583,131.59,131.57,7.6007]
[1744700754850,0.05570583,131.59,131.56,28.29729353]
[1744700755155,0.05570583,131.59,131.56,35.89859353]
[1744700756049,0.05570583,131.59,131.57,7.6009]
[1744700758658,0.05570583,131.59,131.56,35.89869353]
[1744700759655,0.05570583,131.59,131.57,7.601]
[1744700760257,0.05570583,131.59,131.56,28.29729353]
[1744700760857,7.6011,131.57,131.56,0.05729353]
[1744700762157,0.05570583,131.59,131.56,0.05729353]
[1744700762360,0.05570583,131.59,131.56,28.29729353]
[1744700762565,30.2051,131.67,131.57,11.73761865]
[1744700762861,28.24,131.67,131.59,11.73761865]
[1744700763062,28.24,131.67,131.6,28.24]
[1744700763661,0.05024752,131.65,131.62,0.05411167]
[1744700763861,0.05024752,131.65,131.61,11.73761865]
[1744700763862,2.085,131.72,131.63,39.97761865]
[1744700764058,28.24,131.73,131.64,2.0196]
[1744700764262,20.9309,131.66,131.65,2.0725]
[1744700764463,7.5933,131.71,131.65,30.3125]
[1744700764761,7.5936,131.7,131.65,30.3125]
[1744700765060,0.05213123,131.69,131.67,0.05563417]
[1744700765368,7.5947,131.68,131.67,0.05563417]
[1744700766265,7.5965,131.65,131.62,28.24]
[1744700766462,11.73761865,131.69,131.62,28.24]
[1744700766659,11.73761865,131.69,131.62,35.8382]
[1744700766862,4.1636,131.7,131.62,39.97761865]
[1744700767054,30.2569,131.73,131.68,7.5947]
[1744700767260,2.0169,131.73,131.68,7.5947]
[1744700767460,7.64548013,131.72,131.69,0.04898446]
[1744700767961,0.05268013,131.72,131.69,7.64268446]
[1744700768167,0.05268013,131.72,131.69,28.28898446]
[1744700768768,7.64528013,131.72,131.69,28.28898446]
[1744700769473,7.5931,131.71,131.69,28.28898446]
[1744700769662,0.05268013,131.72,131.69,0.04898446]
[1744700770066,7.5936,131.7,131.69,0.04898446]
[1744700771367,7.5953,131.67,131.66,28.24]
[1744700771565,7.5953,131.67,131.63,575.14]
[1744700771867,11.73761865,131.72,131.63,575.14]
[1744700772071,11.73761865,131.7,131.63,28.22]
[1744700772265,4.1859,131.69,131.63,28.22]
[1744700772468,7.5967,131.65,131.63,28.22]
[1744700772769,7.5967,131.65,131.63,28.27819764]
[1744700773066,0.05165366,131.67,131.63,35.87579764]
[1744700773265,0.05165366,131.67,131.63,28.27819764]
[1744700773658,7.5921,131.73,131.69,7.5941]
[1744700774363,7.5925,131.72,131.68,35.8146]
[1744700774767,0.04803247,131.71,131.69,0.05241212]
[1744700775072,0.04928046,131.71,131.69,0.05241212]
[1744700775371,7.5936,131.7,131.69,0.05241212]
[1744700775571,0.04928046,131.71,131.69,0.05241212]
[1744700775766,7.596,131.66,131.62,35.818]
[1744700776070,41.98411865,131.7,131.62,28.22]
[1744700776469,7.5951,131.68,131.64,7.5966]
[1744700776969,0.05546723,131.67,131.65,0.0554029]
[1744700777967,7.65076723,131.67,131.65,0.0554029]
[1744700778170,0.05546723,131.67,131.65,0.0554029]
[1744700778571,7.5959,131.66,131.65,0.0554029]
[1744700778770,0.05546723,131.67,131.65,0.0554029]
[1744700779172,7.5959,131.66,131.65,0.0554029]
[1744700779573,0.05546723,131.67,131.65,0.0554029]
[1744700779874,7.65096723,131.67,131.65,0.0554029]
[1744700780070,0.05546723,131.67,131.65,0.0554029]
[1744700780272,0.05546723,131.67,131.65,28.2754029]
[1744700780672,0.05546723,131.67,131.66,7.5959]
[1744700780872,0.05546723,131.67,131.65,28.2754029]
[1744700781272,0.05546723,131.67,131.65,35.8716029]
[1744700781575,0.05546723,131.67,131.65,28.2754029]
[1744700782571,7.65076723,131.67,131.65,28.2754029]
[1744700782773,0.05546723,131.67,131.65,0.0554029]
[1744700783373,7.5959,131.66,131.65,0.0554029]
[1744700783870,7.5976,131.64,131.62,28.2]
[1744700784076,11.73761865,131.66,131.59,28.2]
[1744700784969,7.5976,131.63,131.61,0.05357541]
[1744700785369,0.05194056,131.64,131.61,0.05357541]
[1744700786074,7.5977,131.63,131.61,0.05357541]
[1744700786376,0.05194056,131.64,131.61,0.05357541]
[1744700787175,7.598,131.63,131.61,0.05357541]
[1744700787372,0.05194056,131.64,131.61,0.05357541]
[1744700787576,0.05194056,131.64,131.62,28.22]
[1744700787778,30.3008,131.71,131.62,39.95761865]
[1744700788078,30.3008,131.71,131.63,2.0276]
[1744700788274,7.5954,131.67,131.62,28.22]
[1744700788476,7.5954,131.67,131.63,7.5973]
[1744700788771,0.05608889,131.66,131.64,0.05517999]
[1744700788976,0.05708308,131.66,131.64,7.65187999]
[1744700789479,0.05708308,131.66,131.64,0.05517999]
[1744700789777,0.05708308,131.66,131.65,7.5965]
[1744700789972,0.05708308,131.66,131.65,35.8165]
[1744700792776,0.05708308,131.66,131.64,0.05517999]
[1744700793578,7.5965,131.65,131.64,0.05517999]
[1744700793780,11.73761865,131.65,131.59,28.22]
[1744700794173,7.5985,131.62,131.59,28.22]
[1744700794580,7.598,131.63,131.59,35.8196]
[1744700794780,0.05493138,131.62,131.6,0.05478497]
[1744700796284,7.65333138,131.62,131.6,0.05478497]
[1744700796483,0.05493138,131.62,131.6,0.05478497]
[1744700796681,0.05493138,131.62,131.55,28.22]
[1744700796877,11.73761865,131.61,131.55,28.22]
[1744700797073,28.22,131.62,131.55,28.22]
[1744700797278,28.22,131.62,131.55,35.8219]
[1744700798080,0.05168665,131.6,131.57,0.05232081]
[1744700798480,7.6005,131.58,131.57,0.05232081]
[1744700798680,0.05168665,131.6,131.57,0.05232081]
[1744700799181,2.00588665,131.6,131.57,0.05232081]
[1744700799779,7.6005,131.58,131.57,0.05232081]
[1744700800485,2.00588665,131.6,131.57,0.05232081]
[1744700800690,0.05168665,131.6,131.57,0.05232081]
[1744700802786,7.6005,131.58,131.57,0.05232081]
[1744700802992,0.05168665,131.6,131.57,0.05232081]
[1744700803695,7.6005,131.58,131.57,0.05232081]
[1744700804693,0.05168665,131.6,131.57,0.05232081]
[1744700804694,7.6001,131.59,131.57,0.05232081]
[1744700805393,0.05168665,131.6,131.57,0.05232081]
[1744700806097,0.05168665,131.6,131.57,7.65312081]
[1744700806393,0.05168665,131.6,131.57,0.05232081]
[1744700806597,0.05168665,131.6,131.58,7.6001]
[1744700807399,0.05168665,131.6,131.59,7.5999]
[1744700807598,4.1529,131.68,131.59,28.32]
[1744700807795,2.0259,131.68,131.6,11.73761865]
[1744700807996,7.5953,131.67,131.64,7.597]
[1744700808600,7.64763081,131.67,131.64,7.64531716]
[1744700810197,11.78994946,131.67,131.64,0.04831716]
[1744700810600,42.14914946,131.67,131.64,0.04831716]
[1744700810800,7.5965,131.65,131.64,0.04831716]
[1744700811002,11.73761865,131.65,131.57,28.3]
[1744700811500,7.5984,131.62,131.58,7.6001]
[1744700811804,11.73761865,131.65,131.57,28.3]
[1744700812005,0.05131409,131.62,131.6,0.0516699]
[1744700812702,7.5988,131.61,131.6,0.0516699]
[1744700813801,7.5988,131.61,131.6,6.99e-05]
[1744700813998,40.03761865,131.61,131.51,575.14]
[1744700814201,11.73761865,131.59,131.51,575.14]
[1744700814395,7.6021,131.56,131.52,7.6037]
[1744700815108,7.65188176,131.55,131.53,0.05860691]
[1744700815499,7.6028,131.54,131.53,0.05860691]
[1744700817302,7.65198176,131.55,131.53,0.05860691]
[1744700819307,7.6028,131.54,131.53,0.05860691]
[1744700820106,7.65208176,131.55,131.53,0.05860691]
[1744700820305,0.04958176,131.55,131.53,0.05860691]
[1744700821004,0.04958176,131.55,131.53,7.66160691]
[1744700821508,0.04958176,131.55,131.53,0.05860691]
[1744700823003,7.65218176,131.55,131.53,0.05860691]
[1744700823908,0.04958176,131.55,131.53,0.05860691]
[1744700824903,0.04958176,131.55,131.53,7.66170691]
[1744700825110,0.04958176,131.55,131.53,0.05860691]
[1744700825402,0.04958176,131.55,131.54,7.6028]
[1744700825603,0.04958176,131.55,131.53,0.05860691]
[1744700826409,0.04958176,131.55,131.53,7.66150691]
[1744700826910,0.04958176,131.55,131.54,7.6028]
[1744700828412,0.04958176,131.55,131.53,7.66170691]
[1744700831115,0.04958176,131.55,131.54,7.6028]
[1744700831709,28.32,131.61,131.54,28.32]
[1744700831905,28.2,131.64,131.54,34.3061]
[1744700832305,7.5986,131.62,131.59,7.5996]
[1744700832815,7.65579844,131.62,131.59,7.6581681]
[1744700833017,7.599,131.61,131.59,0.0585681]
[1744700835117,7.5993,131.6,131.59,0.0585681]
[1744700835710,7.599,131.61,131.59,0.0585681]
[1744700837116,7.5993,131.6,131.59,0.0585681]
[1744700839211,35.7991,131.61,131.59,0.0585681]
[1744700839425,28.2,131.61,131.59,0.0585681]
[1744700839621,11.73761865,131.6,131.59,0.0585681]
[1744700840120,19.33691865,131.6,131.59,0.0585681]
[1744700842023,11.73761865,131.6,131.52,28.2]
[1744700842219,15.99571865,131.59,131.52,28.2]
[1744700842620,7.6011,131.57,131.54,7.6024]
[1744700843125,7.65483815,131.57,131.54,7.65063102]
[1744700844124,0.05373815,131.57,131.54,7.65063102]
[1744700844525,0.05373815,131.57,131.56,7.6017]
[1744700844924,0.05373815,131.57,131.55,28.2]
[1744700845720,0.05373815,131.57,131.54,0.04823102]
[1744700845920,7.65503815,131.57,131.54,7.65073102]
[1744700846322,0.05373815,131.57,131.54,0.04823102]
[1744700846728,7.65513815,131.57,131.54,0.04823102]
[1744700847629,7.6017,131.56,131.54,0.04823102]
[1744700849025,7.65503815,131.57,131.54,0.04823102]
[1744700849430,7.65503815,131.57,131.54,7.65103102]
[1744700850526,7.65503815,131.57,131.54,0.04823102]
[1744700850832,7.6018,131.56,131.54,0.04823102]
[1744700851932,0.05373815,131.57,131.54,7.65103102]
[1744700852729,7.65513815,131.57,131.54,7.65103102]
[1744700853424,7.65513815,131.57,131.54,0.04823102]
[1744700853425,0.05373815,131.57,131.54,0.04823102]
[1744700853633,0.05373815,131.57,131.55,28.2]
[1744700853830,0.05373815,131.57,131.55,35.8021]
[1744700854030,0.05373815,131.57,131.55,28.2]
[1744700856133,0.05373815,131.57,131.56,7.6017]
[1744700856731,0.05373815,131.57,131.55,35.8021]
[1744700857731,7.65513815,131.57,131.55,28.2]
[1744700858127,7.65513815,131.57,131.54,7.65103102]
[1744700858727,7.65513815,131.57,131.55,7.6022]
[1744700859029,0.05373815,131.57,131.55,28.2]
[1744700859421,0.05373815,131.57,131.56,7.6017]
[1744700859620,0.05373815,131.57,131.55,28.2]
[1744700859931,7.65483815,131.57,131.55,28.2]
[1744700864228,0.05373815,131.57,131.55,28.2]
[1744700864535,0.05373815,131.57,131.55,35.8021]
[1744700865239,0.05373815,131.57,131.56,7.6017]
[1744700865633,0.05373815,131.57,131.55,28.2]
[1744700866234,7.65513815,131.57,131.54,7.65073102]
[1744700868436,7.6018,131.56,131.54,0.04823102]
[1744700868936,0.05373815,131.57,131.54,0.04823102]
[1744700869137,7.65513815,131.57,131.54,7.65093102]
[1744700869335,0.05373815,131.57,131.54,0.04823102]
[1744700869535,0.05373815,131.57,131.55,28.08]
[1744700869737,7.599,131.61,131.55,28.08]
[1744700870132,7.599,131.61,131.58,7.6002]
[1744700870735,0.05849082,131.61,131.6,7.5993]
[1744700872144,582.62091451,131.68,131.6,7.36091451]
[1744700872336,35.44091451,131.68,131.61,28.08]
[1744700872940,35.44091451,131.68,131.63,7.5973]
[1744700873240,0.05310963,131.66,131.64,0.05626693]
[1744700873441,7.64910963,131.66,131.64,0.05626693]
[1744700873642,0.05310963,131.66,131.64,0.05626693]
[1744700873843,0.05310963,131.66,131.64,28.13626693]
[1744700874044,0.05310963,131.66,131.64,35.49718144]
[1744700874241,0.05310963,131.66,131.65,7.5965]
[1744700875444,0.05310963,131.66,131.64,35.73316693]
[1744700875745,0.05310963,131.66,131.64,28.13626693]
[1744700876246,0.05310963,131.66,131.65,7.5965]
[1744700882049,35.44091451,131.72,131.66,7.5959]
[1744700882548,7.5939,131.7,131.66,7.5959]
[1744700883050,7.5935,131.71,131.66,7.5959]
[1744700883246,0.05767531,131.68,131.66,7.5959]
[1744700885051,0.05767531,131.68,131.66,14.95681451]
[1744700885251,7.5927,131.72,131.66,7.36091451]
[1744700885445,7.5927,131.72,131.67,28.06]
[1744700885845,7.5927,131.72,131.69,7.5938]
[1744700886052,7.5931,131.71,131.67,28.06]
[1744700886251,0.05596042,131.7,131.69,7.5937]
[1744700887046,0.05596042,131.7,131.68,7.65229142]
[1744700887248,0.05596042,131.7,131.68,0.05779142]
[1744700887652,0.05596042,131.7,131.69,7.5941]
[1744700889149,0.05596042,131.7,131.68,0.05779142]
[1744700891049,0.05596042,131.7,131.69,7.5941]
[1744700891255,9.38201451,131.77,131.68,7.41870593]
[1744700891457,7.5917,131.74,131.68,7.36091451]
[1744700891758,9.38201451,131.77,131.68,7.36091451]
[1744700891951,7.5917,131.74,131.68,7.36091451]
[1744700892257,0.05020526,131.72,131.7,0.05380831]
[1744700892453,0.05020526,131.72,131.7,28.11380831]
[1744700892757,0.05020526,131.72,131.71,7.5928]
[1744700893157,0.05020526,131.72,131.7,28.11380831]
[1744700893356,0.05020526,131.72,131.7,35.70690831]
[1744700893758,0.05020526,131.72,131.7,28.11380831]
[1744700894758,0.05020526,131.72,131.7,35.70710831]
[1744700895455,0.05020526,131.72,131.7,28.11380831]
[1744700895756,7.41111977,131.72,131.7,0.05380831]
[1744700896154,7.41111977,131.72,131.67,28.34]
[1744700896653,7.5939,131.7,131.67,28.34]
[1744700897158,7.5939,131.7,131.67,28.39578191]
[1744700897359,7.5943,131.69,131.67,28.39578191]
[1744700897559,7.65032358,131.69,131.67,28.39578191]
[1744700898061,7.5947,131.68,131.67,0.05578191]